[Event "4NCL Div 2 2024-25"]
[Site "England"]
[Date "2025.02.15"]
[Round "5.6"]
[White "Fellowes, Billy"]
[Black "Lishoy Gengis Paratazham, Dildarav"]
[Result "0-1"]
[Annotator "TA"]
[ECO "B10"]
[WhiteElo "2055"]
[BlackElo "2045"]
[PlyCount "96"]
[EventDate "2024.11.23"]
[EventType "team-tourn"]
[EventCountry "ENG"]
[SourceTitle "playchess.com"]
[Source "ChessBase"]
[SourceQuality "1"]
[TimeControl "40/6000+30:3000+30"]

{[%evp 14,96,-19,-31,-26,-44,-37,-44,-15,-27,-15,-52,-34,-71,-32,-48,-34,-38,18,16,49,56,56,-4,49,52,55,27,16,0,0,-25,0,-23,-23,-38,0,0,31,-25,8,6,33,26,13,18,144,135,455,444,596,595,569,511,666,266,262,260,246,-8,-12,-509,-508,-558,-558,-560,-560,-542,-513,-887,-869,-769,-816,-761,-686,-718,-700,-1061,-1012,-2095,-2180,-2889,-2591,-29974,-29968]} 1. g3 {[%emt 0:10:03]} e5 {[%emt 0:12:28]} 2. Bg2 {[%emt 0:00:05]} d5 {[%emt 0:01:16]} 3. d3 {[%emt 0:00:07]} Nf6 {[%emt 0:00:06]} 4. Nf3 {[%emt 0:00:33]} Bd6 {[%emt 0:00:26]} 5. O-O {[%emt 0:00:59]} O-O {[%emt 0:00:02]} 6. Nbd2 {[%emt 0:07:47]} c6 {[%emt 0:00:59]} 7. e4 {[%emt 0:00:36]} Re8 {[%emt 0:00:41]} 8. Re1 {[%emt 0:02:35]} Bc7 {[%emt 0:00:39] B10: Caro-Kann: 2 d3 and 2 c4.} 9. Qe2 {[%emt 0:00:33]} Nbd7 {[%emt 0:02:50]} 10. h3 {[%emt 0:04:19]} Nf8 $146 {[%emt 0:04:00] Black is slightly better.} ({Predecessor:} 10... dxe4 11. dxe4 a5 12. a4 Nc5 13. b3 b6 14. Ba3 Ba6 15. Qd1 Ne6 16. Bf1 Bxf1 17. Kxf1 {1-0 Harika,D (2492)-Sebag,M (2476) Chess.com Speed (Women) blitz 2019 (1.17)}) 11. Nf1 {[%emt 0:07:36]} Ng6 {[%emt 0:03:39]} 12. c3 {[%emt 0:04:16]} a5 {[%emt 0:01:18]} 13. a4 {[%emt 0:01:33]} Bd7 {[%emt 0:06:31]} 14. Qc2 {[%emt 0:01:27]} Qe7 {[%emt 0:04:55]} 15. Ne3 {[%emt 0:06:29]} Rad8 {[%emt 0:04:16]} ({Black should play} 15... h6 $15) 16. Nf5 $11 {[%emt 0:08:12]} Bxf5 {[%emt 0:02:40]} 17. exf5 {[%emt 0:00:02]} Nf8 {[%emt 0:00:10]} 18. Bf4 {[%emt 0:12:52]} (18. Nxe5 $1 $14 Bxe5 19. d4) 18... N6d7 {[%emt 1:02:34]} (18... e4 $11) 19. d4 $14 {[%emt 0:00:58]} f6 {[%emt 0:00:00][%cal Bf7f6,Bf6e5][%mdl 32]} 20. Rad1 {[%emt 0:06:14]} Qf7 {[%emt 0:00:00]} 21. dxe5 {[%emt 0:07:54]} fxe5 {[%emt 0:00:00]} 22. Ng5 {[%emt 0:05:57]} Qf6 {[%emt 0:00:00]} 23. Bc1 {[%emt 0:00:04]} h6 {[%emt 0:00:00]} 24. Nf3 {[%emt 0:00:01]} Nh7 {[%emt 0:00:00]} 25. Nh4 {[%emt 0:01:50][%cal Od1d5] Rxd5! would now be deadly.} Nhf8 {[%emt 0:00:00]} 26. Be3 {[%emt 0:01:56]} (26. c4 $14 d4 27. c5) 26... Kh8 {[%emt 0:00:00]} 27. Bf3 {[%emt 0:04:49]} Bb6 {[%emt 0:00:00]} 28. Bxb6 {[%emt 0:00:36]} Nxb6 {[%emt 0:00:00]} 29. Qb3 {[%emt 0:02:01]} (29. Bh5 $5) 29... Nc4 {[%emt 0:00:00]} (29... Nfd7 $1 $11) 30. Bh5 $1 $16 {[%emt 0:00:45]} Re7 $2 {[%emt 0:00:00][%mdl 8192] [#]} (30... Nd6 $16 {is more resistant.}) 31. Qxc4 $1 $18 {[%emt 0:06:34][%mdl 512]} dxc4 {[%emt 0:00:00]} (31... g5 32. Ng6+) 32. Rxd8 {[%emt 0:00:01]} Kg8 {[%emt 0:00:00] Black is weak on the light squares} 33. Red1 {[%emt 0:00:51]} g5 {[%emt 0:00:00]} 34. R1d6 $2 {[%emt 0:00:49]} (34. Ng6 Rf7 35. g4) 34... Qxd6 {[%emt 0:00:00]} 35. Rxd6 {[%emt 0:00:09]} gxh4 {[%emt 0:00:00]} 36. gxh4 $2 {[%emt 0:00:47][%mdl 4096] Endgame KRB-KRN. White is a pawn up.} ({Better is} 36. Rd8 $18) 36... Rd7 $11 {[%emt 0:00:00]} 37. Rf6 {[%emt 0:05:09][%mdl 8192]} (37. Rd1 $1 $11 {and White is okay.}) 37... Kg7 $19 {[%emt 0:00:00]} 38. Re6 {[%emt 0:01:03]} Nxe6 {[%emt 0:00:00]} 39. fxe6 {[%emt 0:00:02] KR-KB} Re7 {[%emt 0:00:00]} 40. Bg4 {[%emt 0:01:15]} Kf6 {[%emt 0:00:00]} 41. h5 {[%emt 0:50:32]} (41. Kf1 $142) 41... b5 {[%emt 0:38:40]} 42. axb5 {[%emt 0:00:00]} cxb5 {[%emt 0:00:00] [#] Strongly threatening ...Rxe6.} 43. Kf1 {[%emt 0:00:00]} Re8 {[%emt 0:00:00]} 44. Ke2 {[%emt 0:00:00]} Rd8 {[%emt 0:00:00]} 45. Ke3 {[%emt 0:00:00]} Rd3+ {[%emt 0:00:00]} 46. Ke4 {[%emt 0:00:00]} Rd2 {[%emt 0:00:00]} 47. f3 {[%emt 0:00:00]} b4 {[%emt 0:00:00]} 48. Ke3 {[%emt 0:00:00]} Rxb2 {[%emt 0:00:00] Black used his chance.   Weighted Error Value: White=1.03/Black=0.42  Loses game:     	White=1     	Black=1      Missed win:     	White=1     	---        Mistake:       	White=4     	Black=3      Inaccurate:     	White=3     	Black=9      OK:         	White=6     	Black=9      Best:        	---       	Black=4      Strong:       	White=1     	---        Brilliant:      	White=1     	---} 0-1

[Event "4NCL Div 2 2024-25"]
[Site "England"]
[Date "2025.02.15"]
[Round "5.6"]
[White "Duckers, Harvey L"]
[Black "Manley, Jon P"]
[Result "0-1"]
[Annotator "TA"]
[ECO "A26"]
[WhiteElo "1900"]
[BlackElo "2072"]
[PlyCount "68"]
[EventDate "2024.11.23"]
[EventType "team-tourn"]
[EventCountry "ENG"]
[SourceTitle "playchess.com"]
[Source "ChessBase"]
[SourceQuality "1"]
[TimeControl "40/6000+30:3000+30"]

{[%evp 16,68,0,0,0,-3,6,-1,0,-48,-23,-27,-29,-60,-69,-71,-58,-70,-64,-70,-61,-54,-55,-38,-30,-45,-31,-66,-59,-93,-98,-152,-99,-219,-179,-160,-155,-409,-415,-498,-505,-859,-883,-850,-843,-862,-344,-558,-433,-562,-560,-583,-547,-1614,-1595]} 1. c4 {[%emt 0:10:04]} e5 {[%emt 0:10:24]} 2. Nc3 {[%emt 0:00:06]} Nc6 {[%emt 0:00:43]} 3. g3 {[%emt 0:00:26]} g6 {[%emt 0:07:38]} 4. Bg2 {[%emt 0:00:09]} Bg7 {[%emt 0:00:04]} 5. d3 {[%emt 0:06:33]} d6 {[%emt 0:00:58]} 6. Nf3 {[%emt 0:00:14]} Nge7 {[%emt 0:04:45]} 7. O-O {[%emt 0:01:55]} O-O {[%emt 0:01:40]} 8. Rb1 {[%emt 0:01:00]} a5 {[%emt 0:02:02]} 9. a3 {[%emt 0:00:16]} Bg4 {[%emt 0:14:18] A26: English Opening vs King's Indian with ...Nc6 and d3.} 10. h3 {[%emt 0:12:07]} Bd7 {[%emt 0:06:00]} 11. Bd2 $146 {[%emt 0:03:51]} ({Predecessor:} 11. b4 axb4 12. axb4 Qc8 13. Kh2 h6 14. e3 f5 15. b5 Nd8 16. Bb2 Ne6 17. d4 {0-1 Janzelj,L (2159)-Salimova,N (2425) CRO-chT (Women) 28th 2019 (1.3)}) 11... Nd4 {[%emt 0:05:15] The position is equal.} 12. Ne1 {[%emt 0:03:41]} (12. Re1 $11 {deserves consideration.}) 12... c6 {[%emt 0:04:47]} 13. e3 {[%emt 0:00:08]} Ne6 {[%emt 0:01:51]} 14. f4 {[%emt 0:03:48]} exf4 {[%emt 0:05:08]} 15. gxf4 {[%emt 0:01:05]} Nf5 {[%emt 0:01:09]} 16. Nf3 {[%emt 0:02:16]} Qb6 {[%emt 0:04:53]} 17. d4 {[%emt 0:08:12]} Qa6 {[%emt 0:01:03] Black is much more active.} 18. b3 {[%emt 0:01:34]} Rae8 {[%emt 0:02:54]} 19. Re1 {[%emt 0:05:41]} Nc7 {[%emt 0:02:24]} 20. Kh2 {[%emt 0:00:48]} Re7 {[%emt 0:04:44]} 21. Bf1 {[%emt 0:03:30] Hoping for e4.} Qa7 {[%emt 0:05:58]} 22. Qc1 {[%emt 0:44:06]} b5 {[%emt 0:02:19]} 23. cxb5 {[%emt 0:00:00]} (23. Bg2 $142) 23... cxb5 {[%emt 0:01:02]} (23... Nxb5 $142 24. Nd1 Rfe8) 24. Bd3 {[%emt 0:00:00]} (24. b4 $17) 24... Rfe8 {[%emt 0:02:10] White must now prevent ...b4.} 25. b4 {[%emt 0:00:00] [#]} a4 {[%emt 0:00:27]} 26. Nd1 $2 {[%emt 0:00:00] This costs White the game.} (26. Re2 $17) 26... Qb7 $19 {[%emt 0:01:54]} 27. Ng1 {[%emt 0:00:00]} Nxd4 {[%emt 0:03:58]} 28. exd4 {[%emt 0:00:00]} (28. Rf1 $142 Bf5 29. Bxf5 Nxf5 30. Qc2) 28... Rxe1 {[%emt 0:00:16]} 29. Bxe1 {[%emt 0:00:00]} Rxe1 {[%emt 0:00:13]} 30. Qd2 {[%emt 0:00:00]} Re8 $2 {[%emt 0:00:52]} (30... Rxg1 31. Kxg1 Bxd4+ 32. Kh2 Qf3) 31. Qf2 $2 {[%emt 0:00:00]} (31. Bf1) 31... Qd5 {[%emt 0:04:25] Black is clearly winning.} 32. Ne2 {[%emt 0:00:00]} Qh5 {[%emt 0:01:03]} 33. Ng1 {[%emt 0:00:27]} Ne6 {[%emt 0:01:18]} 34. d5 {[%emt 0:00:59] [#]} Nxf4 $1 {[%emt 0:00:44][%mdl 512] Weighted Error Value: White=0.84/Black=0.29 (precise)   Loses game:     	White=1     	---        Mistake:       	White=4     	Black=1      Inaccurate:     	White=4     	---        OK:         	White=6     	Black=12     Best:        	---       	Black=1      Brilliant:      	---       	Black=1} 0-1

[Event "4NCL Div 2 2024-25"]
[Site "England"]
[Date "2025.02.15"]
[Round "5.7"]
[White "Nicholas, Koichi B"]
[Black "Fallowfield, Jeremy R"]
[Result "1/2-1/2"]
[Annotator "TA"]
[ECO "B31"]
[WhiteElo "2089"]
[BlackElo "2072"]
[PlyCount "78"]
[EventDate "2024.11.23"]
[EventType "team-tourn"]
[EventCountry "ENG"]
[SourceTitle "playchess.com"]
[Source "ChessBase"]
[SourceQuality "1"]
[TimeControl "40/6000+30:3000+30"]

{[%evp 13,78,18,17,18,16,19,18,0,6,0,17,2,12,1,0,0,20,16,14,13,27,18,22,7,7,0,58,51,58,63,76,49,45,44,43,25,30,22,29,-6,11,0,0,-32,-30,-34,0,0,10,-26,65,58,60,57,64,55,36,0,22,0,53,46,95,6,0,-10,0]} 1. e4 {[%emt 0:10:04]} c5 {[%emt 0:10:28]} 2. Nf3 {[%emt 0:00:11]} Nc6 {[%emt 0:00:58]} 3. Bb5 {[%emt 0:00:31]} g6 {[%emt 0:00:09]} 4. O-O {[%emt 0:00:28]} Bg7 {[%emt 0:00:06]} 5. Re1 {[%emt 0:00:25]} e5 {[%emt 0:00:27]} 6. Bxc6 {[%emt 0:02:50]} dxc6 {[%emt 0:00:11]} 7. d3 {[%emt 0:00:21]} Qc7 {[%emt 0:16:28]} 8. Be3 {[%emt 0:01:40] 8.a4 is more fashionable. B31: Sicilian: 2...Nc6 3 Bb5 g6.} b6 {[%emt 0:02:25]} 9. a4 {[%emt 0:03:12][%cal Oa4a5]} a5 {[%emt 0:00:39]} 10. h3 {[%emt 0:01:27]} Nf6 {[%emt 0:01:39]} 11. Na3 {[%emt 0:02:23]} O-O {[%emt 0:02:05]} 12. Qd2 {[%emt 0:09:39]} Rd8 {[%emt 0:10:27]} 13. Bg5 {[%emt 0:16:29]} Re8 {[%emt 0:07:24]} 14. Nc4 {[%emt 0:07:02]} Nd7 {[%emt 0:03:38]} 15. Bh6 {[%emt 0:06:02]} Bxh6 $146 {[%emt 0:07:45]} ({Predecessor:} 15... Bh8 16. Nh2 Ba6 17. Ng4 Bxc4 18. dxc4 Nf6 19. Bg5 Nh5 20. g3 f6 21. Be3 Rad8 22. Qe2 Bg7 {½-½ Jacobson,B (2486)-Gordievsky,D (2592) Saint Louis Summer-C 2019 (2)}) 16. Qxh6 {[%emt 0:00:10]} f6 {[%emt 0:00:09]} 17. Nh2 {[%emt 0:13:50]} Nf8 {[%emt 0:01:48]} 18. Qh4 {[%emt 0:07:05]} Kg7 {[%emt 0:06:01]} 19. Ne3 {[%emt 0:08:25]} Qe7 {[%emt 0:01:09]} ({Black should try} 19... Ne6 $11) 20. f4 $14 {[%emt 0:03:37]} exf4 {[%emt 0:01:54]} 21. Qxf4 {[%emt 0:00:10]} Be6 {[%emt 0:08:15]} 22. Rf1 {[%emt 0:01:47]} Nd7 {[%emt 0:01:20]} 23. Rae1 {[%emt 0:00:50]} Ne5 {[%emt 0:06:40]} 24. Rf2 {[%emt 0:02:15]} Rad8 {[%emt 0:00:33]} 25. Ref1 {[%emt 0:01:09]} Rf8 {[%emt 0:00:29]} 26. Qg3 {[%emt 0:00:57]} (26. b3 Qd6 27. Nhg4 Nxg4 28. Qxd6 Rxd6 29. Nxg4 Bxg4 30. hxg4 h6 31. Rf3) 26... Qd6 {[%emt 0:08:53]} 27. b3 {[%emt 0:03:53]} (27. Neg4 Nxg4 28. Qxd6 Rxd6 29. Nxg4 Bxg4 30. hxg4 Kh6 31. e5) 27... b5 {[%emt 0:03:48]} 28. axb5 {[%emt 0:01:46]} (28. Nhg4 {simplifies} Nxg4 29. Qxd6 Rxd6 30. Nxg4 Bxg4 31. hxg4 bxa4 32. bxa4 Rdd8 33. Rf3) 28... cxb5 {[%emt 0:00:02]} 29. Ra1 {[%emt 0:00:46]} Qb6 {[%emt 0:03:36]} (29... a4 $5 30. bxa4 Qd4 $17) 30. Nhg4 {[%emt 0:02:21]} Nd7 {[%emt 0:02:49]} 31. Raf1 {[%emt 0:00:42]} Qb8 {[%emt 0:00:39]} (31... a4 $11) 32. Qh4 {[%emt 0:00:43] White attacks} Bxg4 {[%emt 0:00:35]} 33. Nxg4 {[%emt 0:00:38][%cal Oe4e5] [#]} Qd6 {[%emt 0:00:18]} 34. Qh6+ {[%emt 0:01:49]} Kg8 $1 {[%emt 0:00:05]} 35. Qh4 {[%emt 0:00:33][%cal Oe4e5] Hoping for e5!.} Kg7 $1 {[%emt 0:00:03]} 36. Qh6+ {[%emt 0:01:27]} (36. e5 $5 fxe5 37. Qh6+ Kg8 38. Qg5 $16) 36... Kg8 $1 {[%emt 0:00:07]} 37. Qd2 {[%emt 0:00:20]} Ra8 {[%emt 0:02:33] [#]} (37... a4 $14) 38. Qc3 {[%emt 0:00:47] White is more active.} (38. e5 $1 $16 {[%cal Re5d6]} Nxe5 39. Nxf6+ Kg7 40. Qe1) 38... Kg7 {[%emt 0:01:02]} 39. Ra1 {[%emt 0:00:26]} Qd4 {[%emt 0:00:47] Weighted Error Value: White=0.15 (very precise) /Black=0.12 (very precise)   Mistake:       	White=1     	Black=3      Inaccurate:     	White=4     	Black=1      OK:         	White=6     	Black=12     Best:        	White=2     	---        Strong:       	---       	Black=3} 1/2-1/2

[Event "4NCL Div 2 2024-25"]
[Site "England"]
[Date "2025.02.15"]
[Round "5.7"]
[White "Hariharan, Shambavi"]
[Black "Tart, Peter K"]
[Result "1-0"]
[Annotator "TA"]
[ECO "A21"]
[WhiteElo "1940"]
[BlackElo "1903"]
[PlyCount "81"]
[EventDate "2024.11.23"]
[EventType "team-tourn"]
[EventCountry "ENG"]
[SourceTitle "playchess.com"]
[Source "ChessBase"]
[SourceQuality "1"]
[TimeControl "40/6000+30:3000+30"]

{[%evp 18,81,16,10,15,11,20,0,0,-42,-39,-68,-58,-359,-363,-352,11,24,22,-128,0,0,16,24,59,61,75,64,236,196,235,234,456,462,608,407,435,435,745,729,760,739,731,727,833,794,802,725,847,818,969,739,732,732,1636,1559,5226,5214,6873,7375,8761,9944,5214,5214,29983,29984]} 1. Nf3 {[%emt 0:10:09]} f5 {[%emt 0:10:06]} 2. g3 {[%emt 0:00:03]} Nf6 {[%emt 0:00:09]} 3. Bg2 {[%emt 0:00:11]} d6 {[%emt 0:00:23]} 4. O-O {[%emt 0:00:35]} e5 {[%emt 0:00:19]} 5. d3 {[%emt 0:00:26]} Be7 {[%emt 0:00:21]} 6. c4 {[%emt 0:00:25]} Nc6 {[%emt 0:03:35]} 7. Nc3 {[%emt 0:00:13]} O-O {[%emt 0:01:29]} 8. Rb1 {[%emt 0:01:50]} a5 {[%emt 0:05:58]} 9. a3 {[%emt 0:01:39]} Qe8 {[%emt 0:08:07]} 10. b4 {[%emt 0:01:45]} axb4 {[%emt 0:00:07] A21: English Opening: 1...e5 2 Nc3.} 11. axb4 {[%emt 0:00:06]} Qh5 {[%emt 0:07:11]} 12. Nb5 {[%emt 0:27:25]} Bd8 {[%emt 0:01:54][%cal Of5f4] The position is equal.} 13. Bd2 {[%emt 0:05:13] [#]} f4 $1 {[%emt 0:05:48]} 14. e3 $146 {[%emt 0:12:42]} (14. c5 d5) ({Predecessor:} 14. c5 d5 15. gxf4 Bh3 16. Bxh3 Qxh3 17. Ng5 Qh4 18. f3 exf4 19. Ne6 Ng4 20. fxg4 Qxg4+ {1-0 Yakubbaeva,N (2250)-Bakhrillaev,B (2080) Khodzhaev Memorial 2021 (6)}) 14... Bg4 {[%emt 0:07:46]} (14... Bf5 $5 15. Rb3 fxe3 16. fxe3 e4 17. dxe4 Bxe4 $17 (17... Nxe4 18. Bc1 $17)) 15. Qe2 $2 {[%emt 0:08:52][%mdl 8192]} (15. exf4 $15 exf4 16. gxf4) 15... e4 $19 {[%emt 0:05:19]} 16. dxe4 {[%emt 0:03:50]} Nxe4 $2 {[%emt 0:00:22]} (16... Ne5 $19 17. Nbd4 Nxe4 (17... fxg3 $2 18. fxg3 Nxe4 19. Be1 $19) 18. exf4 Nxd2 19. Qxd2 Nxf3+ 20. Nxf3 Bxf3) 17. h3 $1 $11 {[%emt 0:01:25]} Bxh3 {[%emt 0:01:36]} 18. Bxh3 {[%emt 0:01:18]} (18. exf4 $11 Bf5 19. Rbe1) 18... Qxh3 {[%emt 0:00:31] Black attacks} ({Black should play} 18... fxg3 $17 19. Be6+ Kh8 20. fxg3 Nxg3 (20... Qg6 21. Qg2 $16)) 19. exf4 {[%emt 0:00:49]} Nxd2 {[%emt 0:12:01]} 20. Qxd2 {[%emt 0:00:13]} Qd7 {[%emt 0:00:48]} (20... Rf5 {seems wilder.} 21. Qe2 Ne5 22. fxe5 Rh5) 21. Kg2 {[%emt 0:31:51]} Bf6 {[%emt 0:01:42]} 22. Rh1 {[%emt 0:00:00]} Na7 $2 {[%emt 0:03:56]} (22... h6 $14) 23. Qd5+ $18 {[%emt 0:00:00]} Qf7 {[%emt 0:02:25] [#] Strongly threatening ...Qxd5.} 24. Nxc7 {[%emt 0:00:00]} (24. Qxb7 Nxb5 25. Qxb5 Ra2) 24... Rac8 $2 {[%emt 0:02:05]} (24... Qxd5 25. Nxd5 b5) 25. Ne6 {[%emt 0:00:00][%cal Oh1h7]} Rfe8 {[%emt 0:00:21]} 26. f5 {[%emt 0:00:00][%cal Oh1h7,Bf4f5,Bf5e6][%mdl 32] Rxh7! is the strong threat.} h6 {[%emt 0:07:13]} 27. b5 {[%emt 0:00:00] Wards off Nc6} ({Not} 27. Qxd6 Rxc4 28. Qd5 b5 $18) 27... Rxe6 {[%emt 0:04:58]} (27... Rc5 $142) 28. fxe6 {[%emt 0:00:00]} Qe7 {[%emt 0:00:13]} 29. Nd4 {[%emt 0:00:00]} Bxd4 {[%emt 0:06:26]} 30. Qxd4 {[%emt 0:00:00]} Rc5 {[%emt 0:00:05]} 31. Rbe1 {[%emt 0:00:00]} Nc8 {[%emt 0:00:30][%cal Ba7c8,Bc8b6,Bb6c4][%mdl 32]} 32. Qg4 {[%emt 0:00:00]} Rg5 {[%emt 0:02:14]} 33. Qf3 {[%emt 0:00:00]} Nb6 {[%emt 0:01:38]} 34. Re4 {[%emt 0:00:00]} Rc5 {[%emt 0:02:39]} 35. Rh5 {[%emt 0:00:00][%cal Bh1h5,Bh5f5,Bf5f3][%mdl 32]} Rxc4 {[%emt 0:00:57]} 36. Rf5 {[%emt 0:00:00]} Rxe4 {[%emt 0:01:08]} 37. Qxe4 {[%emt 0:00:00]} d5 {[%emt 0:01:01]} 38. Qe5 {[%emt 0:00:00] Rf7 would kill now.} Nc4 {[%emt 0:01:41]} 39. Qxd5 {[%emt 0:00:00]} Nd6 {[%emt 0:00:03]} 40. Rf3 {[%emt 0:00:00]} Kh7 {[%emt 0:01:07]} 41. Rd3 {[%emt 0:44:15] Never resign too early!   Weighted Error Value: White=0.62/Black=0.84  Loses game:     	White=1     	Black=1      Missed win:     	---       	Black=1      Mistake:       	White=1     	Black=3      Inaccurate:     	White=3     	Black=2      OK:         	White=3     	Black=5      Best:        	White=2     	Black=1      Strong:       	White=1     	---} 1-0

[Event "4NCL Div 2 2024-25"]
[Site "England"]
[Date "2025.02.15"]
[Round "5.8"]
[White "Brooks, Phil J"]
[Black "Shepherd, Tom"]
[Result "1/2-1/2"]
[Annotator "TA"]
[ECO "D53"]
[WhiteElo "2124"]
[BlackElo "1905"]
[PlyCount "44"]
[EventDate "2024.11.23"]
[EventType "team-tourn"]
[EventCountry "ENG"]
[SourceTitle "playchess.com"]
[Source "ChessBase"]
[SourceQuality "1"]
[TimeControl "40/6000+30:3000+30"]

{[%evp 14,43,0,0,0,0,0,0,0,0,0,-16,20,0,33,3,9,8,18,0,17,0,0,0,0,0,16,0,3,0,0,0]} 1. d4 {[%emt 0:10:23]} d5 {[%emt 0:10:04]} 2. c4 {[%emt 0:00:07]} e6 {[%emt 0:00:02]} 3. Nc3 {[%emt 0:00:30]} Nf6 {[%emt 0:00:09]} 4. Bg5 {[%emt 0:00:17]} Be7 {[%emt 0:00:07]} 5. e3 {[%emt 0:00:14]} O-O {[%emt 0:00:18]} 6. cxd5 {[%emt 0:00:52]} Nxd5 {[%emt 0:02:37]} 7. Bxe7 {[%emt 0:00:31]} Qxe7 {[%emt 0:00:05]} 8. Nf3 {[%emt 0:00:10]} Nxc3 {[%emt 0:02:46] D53: Queen's Gambit Declined: 4 Bg5 Be7: Early deviations.} 9. bxc3 {[%emt 0:00:05]} b6 {[%emt 0:00:05]} 10. Bd3 {[%emt 0:04:52]} Bb7 {[%emt 0:00:10]} 11. Qc2 {[%emt 0:04:54]} h6 {[%emt 0:01:16]} 12. O-O {[%emt 0:04:02][%cal Bh1f1,Bf1b1,Bb1b5][%mdl 32]} Nd7 {[%emt 0:02:28]} 13. a4 {[%emt 0:01:03]} Rfe8 $146 {[%emt 0:20:12]} ({Predecessor:} 13... c5 14. a5 Rfc8 15. Qb2 cxd4 16. cxd4 Qd6 17. Rfd1 Rab8 18. axb6 Bxf3 19. gxf3 axb6 {½-½ Mourot,F (2057)-Simon,L (2170) FRA-chT2O 0203 2002 (4.6)}) 14. Be4 {[%emt 0:12:29]} Bxe4 {[%emt 0:00:28] The position is equal.} 15. Qxe4 {[%emt 0:00:05]} a5 {[%emt 0:07:37]} 16. Rfb1 {[%emt 0:10:25]} Qd6 {[%emt 0:02:00]} 17. Rb5 {[%emt 0:06:32]} Rac8 {[%emt 0:09:04]} 18. h3 {[%emt 0:10:26]} c5 {[%emt 0:04:49]} 19. Ne5 {[%emt 0:05:19]} cxd4 {[%emt 0:02:42]} 20. cxd4 {[%emt 0:02:24]} Nxe5 {[%emt 0:05:31]} 21. Qxe5 {[%emt 0:04:46]} Qxe5 {[%emt 0:01:16]} 22. dxe5 {[%emt 0:02:58]} Rc6 {[%emt 0:00:20] An uneventful encounter.   Weighted Error Value: White=0.10 (very precise) /Black=0.08 (flawless)   Inaccurate:     	White=1     	Black=2      OK:         	White=3     	Black=5} 1/2-1/2